bitfinex/quotes_BTCUSD_20230120
["timestamp","ask_amount","ask_price","bid_price","bid_amount"]
[1674178213115,5.373445,21130.0,21129.0,0.41118892]
[1674178213601,5.373445,21130.0,21129.0,0.8295506]
[1674178213880,5.373445,21130.0,21129.0,1.7761166]
[1674178214124,5.052,21130.0,21129.0,1.7761166]
[1674178214388,5.372971,21130.0,21129.0,1.4761166]
[1674178215187,5.372971,21130.0,21129.0,0.11118892]
[1674178215452,5.76957135,21130.0,21129.0,0.11118892]
[1674178216251,5.372971,21130.0,21129.0,0.11118892]
[1674178216512,5.82246064,21130.0,21129.0,0.11118892]
[1674178217049,6.29572064,21130.0,21129.0,0.11118892]
[1674178217343,6.29372064,21130.0,21129.0,0.04618892]
[1674178217598,6.320491,21130.0,21129.0,0.10618892]
[1674178217873,6.317491,21130.0,21129.0,0.04618892]
[1674178218399,6.317491,21130.0,21129.0,0.04918892]
[1674178218687,6.317491,21130.0,21129.0,0.04618892]
[1674178218966,6.7857978,21130.0,21129.0,0.05118892]
[1674178219235,6.7537978,21130.0,21129.0,0.04618892]
[1674178220634,6.7807978,21130.0,21129.0,0.05218892]
[1674178220926,6.344491,21130.0,21129.0,0.05218892]
[1674178221191,6.70330082,21130.0,21129.0,0.04618892]
[1674178221491,6.68333474,21130.0,21129.0,0.05218892]
[1674178221755,6.317491,21130.0,21129.0,0.04618892]
[1674178222018,6.317491,21130.0,21129.0,0.05212653]
[1674178222019,7.26300202,21130.0,21129.0,0.05212653]
[1674178222823,7.73329412,21130.0,21129.0,0.05212653]
[1674178223093,7.23600202,21130.0,21129.0,0.05212653]
[1674178223360,0.1,21129.0,21123.0,0.35841959]
[1674178223628,1.77332929,21128.0,21123.0,0.35841959]
[1674178223979,0.63631797,21127.0,21120.0,0.58703313]
[1674178224248,0.51860397,21126.0,21121.0,0.40535912]
[1674178224520,1.00361997,21125.0,21121.0,0.40535912]
[1674178224788,0.62335197,21124.0,21123.0,0.006]
[1674178225062,0.329031,21124.0,21121.0,0.40535912]
[1674178225329,0.473373,21125.0,21121.0,0.40535912]
[1674178225330,0.331012,21123.0,21121.0,0.40535912]
[1674178225610,0.348319,21122.0,21121.0,0.40535912]
[1674178225873,0.473373,21125.0,21121.0,0.40535912]
[1674178225874,0.4507,21126.0,21121.0,0.3]
[1674178226133,0.4507,21126.0,21122.0,0.773433]
[1674178226403,0.4507,21126.0,21123.0,0.1]
[1674178226660,0.297571,21125.0,21122.0,0.773433]
[1674178226937,0.50970897,21124.0,21121.0,0.55172501]
[1674178227209,0.51374897,21123.0,21121.0,0.4171061]
[1674178227468,0.65322073,21125.0,21121.0,0.4171061]
[1674178227742,0.304603,21124.0,21121.0,0.4171061]
[1674178228003,0.333764,21123.0,21121.0,0.4171061]
[1674178228290,0.324112,21122.0,21121.0,0.4831061]
[1674178228551,0.324112,21122.0,21121.0,0.07827301]
[1674178229145,0.324112,21122.0,21121.0,0.01227301]
[1674178229396,0.324112,21122.0,21121.0,0.03527301]
[1674178229654,0.79099711,21122.0,21121.0,0.01227301]
[1674178229923,0.81799711,21122.0,21121.0,0.01727301]
[1674178230179,1.26443711,21122.0,21121.0,0.01227301]
[1674178230656,1.26443711,21122.0,21121.0,0.01827301]
[1674178230657,1.18860452,21122.0,21121.0,0.01827301]
[1674178230659,1.60144488,21122.0,21121.0,0.01827301]
[1674178230930,1.23739236,21122.0,21121.0,0.01827301]
[1674178232052,0.824552,21122.0,21121.0,0.01827301]
[1674178232294,1.14619332,21122.0,21121.0,0.01827301]
[1674178232570,1.32333332,21122.0,21121.0,0.01827301]
[1674178233107,0.824552,21122.0,21121.0,0.01827301]
[1674178233396,1.14619332,21122.0,21121.0,0.01827301]
[1674178233913,1.297992,21122.0,21121.0,0.01827301]
[1674178235290,1.61963332,21122.0,21121.0,0.01827301]
[1674178236364,1.6365924,21122.0,21121.0,0.01827301]
[1674178236903,1.68851149,21122.0,21121.0,0.01827301]
[1674178237397,1.56152795,21122.0,21121.0,0.01827301]
[1674178238178,1.297992,21122.0,21121.0,0.01827301]
[1674178240044,1.63642012,21122.0,21121.0,0.01827301]
[1674178240568,1.297992,21122.0,21121.0,0.01827301]
[1674178242948,1.69488991,21122.0,21121.0,0.01827301]
[1674178243977,1.297992,21122.0,21121.0,0.01827301]
[1674178244276,1.689408,21122.0,21121.0,0.01827301]
[1674178244532,1.522476,21122.0,21121.0,0.01827301]
[1674178245077,1.9231439,21122.0,21121.0,0.01817053]
[1674178245607,1.6986599,21122.0,21121.0,0.01817053]
[1674178245866,1.297992,21122.0,21121.0,0.01817053]
[1674178247462,1.91963332,21122.0,21121.0,0.01817053]
[1674178248014,2.09513332,21122.0,21121.0,0.01817053]
[1674178248278,1.773492,21122.0,21121.0,0.01817053]
[1674178248817,1.773492,21122.0,21121.0,0.25817053]
[1674178249099,1.297992,21122.0,21121.0,0.25817053]
[1674178249358,1.522476,21122.0,21121.0,0.25817053]
[1674178250439,1.297992,21122.0,21121.0,0.25817053]
[1674178251238,1.73205887,21122.0,21121.0,0.25817053]
[1674178251505,1.297992,21122.0,21121.0,0.25817053]
[1674178252005,1.76207677,21122.0,21121.0,0.25817053]
[1674178252266,1.297992,21122.0,21121.0,0.25817053]
[1674178252797,1.572476,21122.0,21121.0,0.25817053]
[1674178253074,1.872476,21122.0,21121.0,0.25817053]
[1674178253322,1.572476,21122.0,21121.0,0.25817053]
[1674178253601,1.347992,21122.0,21121.0,0.25817053]
[1674178254651,1.347992,21122.0,21121.0,0.20817053]
[1674178255440,1.347992,21122.0,21121.0,0.21476214]
[1674178255710,1.66834662,21122.0,21121.0,0.21476214]
[1674178256004,2.08136281,21122.0,21121.0,0.21476214]
[1674178256542,1.78136281,21122.0,21121.0,0.21476214]
[1674178256801,1.95165491,21122.0,21121.0,0.21476214]
[1674178257589,2.70663278,21122.0,21121.0,0.21476214]
[1674178257848,0.15880904,21120.0,21118.0,0.01553177]
[1674178258106,2.17301091,21119.0,21118.0,0.01553177]
[1674178259177,2.64271587,21119.0,21118.0,0.01553177]
[1674178259439,3.10326976,21119.0,21118.0,0.01553177]
[1674178259754,3.73281031,21119.0,21118.0,0.01553177]
[1674178259991,2.97225642,21119.0,21118.0,0.01553177]
[1674178260225,2.32069852,21119.0,21118.0,0.01553177]
[1674178260491,2.11309435,21119.0,21118.0,0.01553177]
[1674178260768,2.2529685,21119.0,21118.0,0.01553177]
[1674178261271,1.83002,21119.0,21118.0,0.01553177]
[1674178262016,2.20932235,21119.0,21118.0,0.01553177]
[1674178262294,2.32255154,21119.0,21118.0,0.01553177]
[1674178262524,2.20932235,21119.0,21118.0,0.01553177]
[1674178263054,2.24195428,21119.0,21118.0,0.01553177]
[1674178265223,2.15095428,21119.0,21118.0,0.01553177]
[1674178265498,1.75244728,21119.0,21118.0,0.01753177]
[1674178265765,1.77244728,21119.0,21118.0,0.01753177]
[1674178266051,0.413499,21119.0,21118.0,0.56724949]
[1674178266740,0.338499,21119.0,21118.0,0.56524949]
[1674178266976,0.413499,21119.0,21118.0,0.43086949]
[1674178267810,0.338499,21119.0,21118.0,0.42886949]
[1674178268069,0.343499,21119.0,21118.0,0.44986949]
[1674178268862,0.343499,21119.0,21118.0,0.021]
[1674178269148,0.77282508,21119.0,21118.0,0.021]
[1674178269672,0.76782508,21119.0,21117.0,0.00254401]
[1674178269937,0.303504,21118.0,21117.0,0.00254401]
[1674178271056,0.330504,21118.0,21117.0,0.00454401]
[1674178273464,0.04545599,21117.0,21116.0,0.0026795]
[1674178273748,0.81477675,21117.0,21116.0,0.0026795]
[1674178274836,1.31632875,21117.0,21116.0,0.0046795]
[1674178275099,1.78988075,21117.0,21116.0,0.0046795]
[1674178275955,1.77174774,21117.0,21116.0,0.0046795]
[1674178277060,1.33289399,21117.0,21116.0,0.0046795]
[1674178277316,1.69788501,21117.0,21116.0,0.0046795]
[1674178277588,0.03556418,21114.0,21113.0,0.00244134]
[1674178277857,0.35037618,21114.0,21113.0,0.00244134]
[1674178278402,0.82399518,21114.0,21113.0,0.00244134]
[1674178278639,0.83199518,21114.0,21113.0,0.01344134]
[1674178279199,0.01968259,21111.0,21110.0,0.89160594]
[1674178279460,0.01968259,21111.0,21110.0,0.41790394]
[1674178279754,0.01968259,21111.0,21109.0,0.75880544]
[1674178280021,0.01968259,21111.0,21109.0,1.65000051]
[1674178280288,0.02868259,21111.0,21110.0,0.001]
[1674178280578,0.02868259,21111.0,21110.0,0.101]
[1674178280847,0.01968259,21111.0,21110.0,0.51250064]
[1674178281122,0.01968259,21111.0,21110.0,1.80257153]
[1674178281123,0.02868259,21111.0,21110.0,1.80257153]
[1674178281383,0.03468259,21111.0,21110.0,1.80357153]
[1674178281652,0.02568259,21111.0,21110.0,1.69007089]
[1674178281917,0.02968259,21111.0,21110.0,1.80357153]
[1674178282471,0.02968259,21111.0,21110.0,2.23046639]
[1674178282734,0.02968259,21111.0,21110.0,3.54093968]
[1674178283001,0.01968259,21111.0,21110.0,3.31489374]
[1674178283492,0.02568259,21111.0,21110.0,3.31489374]
[1674178283494,0.01968259,21111.0,21110.0,3.31489374]
[1674178283755,0.01968259,21111.0,21110.0,2.98155774]
[1674178284014,0.01968259,21111.0,21110.0,3.30305074]
[1674178284277,0.01968259,21111.0,21110.0,3.09430649]
[1674178284832,0.02968259,21111.0,21110.0,2.93888348]
[1674178285099,0.02968259,21111.0,21110.0,3.11387177]
[1674178285371,0.02968259,21111.0,21110.0,2.9565534]
[1674178285628,0.01968259,21111.0,21110.0,2.22825143]
[1674178285892,0.02868259,21111.0,21110.0,2.22925143]
[1674178286156,0.02868259,21111.0,21110.0,2.22825143]
[1674178286438,0.02868259,21111.0,21110.0,2.22925143]
[1674178286439,0.03868259,21111.0,21110.0,2.22925143]
[1674178286710,0.03868259,21111.0,21110.0,3.20974727]
[1674178287228,0.01968259,21111.0,21110.0,2.22826201]
[1674178287482,0.02968259,21111.0,21110.0,2.22926201]
[1674178287750,0.01968259,21111.0,21110.0,1.81550268]
[1674178288260,0.01968259,21111.0,21110.0,2.11550268]
[1674178288734,0.02968259,21111.0,21110.0,1.81650268]
[1674178288740,0.02968259,21111.0,21110.0,0.39188299]
[1674178288991,0.01968259,21111.0,21110.0,0.39188299]
[1674178289252,0.02568259,21111.0,21110.0,0.39188299]
[1674178289522,0.02568259,21111.0,21110.0,0.69188299]
[1674178290088,0.02568259,21111.0,21110.0,0.63188299]
[1674178290366,0.01968259,21111.0,21110.0,0.63088299]
[1674178290929,0.01968259,21111.0,21110.0,0.93088299]
[1674178291237,0.01968259,21111.0,21110.0,0.63088299]
[1674178291498,0.05568259,21111.0,21110.0,0.63088299]
[1674178292833,0.05568259,21111.0,21110.0,0.24]
[1674178293100,0.37007559,21111.0,21110.0,0.24]
[1674178293357,0.37920459,21111.0,21110.0,0.24]
[1674178293617,0.05568259,21111.0,21110.0,0.24]
[1674178294190,0.05568259,21111.0,21110.0,0.54]
[1674178294452,0.05568259,21111.0,21110.0,0.89842373]
[1674178294848,0.05568259,21111.0,21110.0,1.38294279]
[1674178294849,0.05568259,21111.0,21110.0,1.96941112]
[1674178295097,0.05568259,21111.0,21110.0,3.67795422]
[1674178295347,0.05568259,21111.0,21110.0,3.45290828]
[1674178295608,0.05568259,21111.0,21110.0,3.46341765]
[1674178295845,0.01968259,21111.0,21110.0,3.57607038]
[1674178296089,0.02868259,21111.0,21110.0,3.58207038]
[1674178296342,0.02868259,21111.0,21110.0,2.77743363]
[1674178296610,0.02868259,21111.0,21110.0,3.26797158]
[1674178296854,0.02868259,21111.0,21110.0,3.43895139]
[1674178297098,0.01968259,21111.0,21110.0,3.26187012]
[1674178297345,0.02868259,21111.0,21110.0,3.59797412]
[1674178298616,0.02868259,21111.0,21110.0,3.43925939]
[1674178298837,0.02868259,21111.0,21110.0,3.13999231]
[1674178299129,0.02868259,21111.0,21110.0,2.46310163]
[1674178299360,0.02868259,21111.0,21110.0,2.44310163]
[1674178300021,0.02868259,21111.0,21110.0,1.96939263]
[1674178300291,0.02868259,21111.0,21110.0,2.33036285]
[1674178300505,0.02868259,21111.0,21110.0,2.44310163]
[1674178300950,0.02868259,21111.0,21110.0,1.96589994]
[1674178301424,0.02868259,21111.0,21110.0,1.49219094]
[1674178301881,0.02868259,21111.0,21110.0,1.37945216]
[1674178302105,0.02868259,21111.0,21110.0,1.49219094]
[1674178302322,0.02868259,21111.0,21110.0,1.07945216]
[1674178302808,0.02868259,21111.0,21110.0,1.37945216]
[1674178303487,0.02868259,21111.0,21110.0,0.60574316]
[1674178303927,0.02868259,21111.0,21110.0,0.90574316]
[1674178304172,0.02868259,21111.0,21110.0,1.85316116]
[1674178304398,0.02868259,21111.0,21110.0,0.23681006]
[1674178304614,0.34589859,21111.0,21110.0,0.23681006]
[1674178304838,0.02868259,21111.0,21110.0,0.23681006]
[1674178306040,0.71490822,21111.0,21110.0,0.23681006]
[1674178307325,0.35575659,21111.0,21110.0,0.23681006]
[1674178307570,0.02868259,21111.0,21110.0,0.23681006]
[1674178307835,0.36007659,21111.0,21110.0,0.23681006]
[1674178309581,0.36007659,21111.0,21110.0,0.22681006]
[1674178310105,0.36007659,21111.0,21110.0,0.70051906]
[1674178310370,0.36007659,21111.0,21110.0,0.22681006]
[1674178312604,0.74484509,21111.0,21110.0,0.22681006]
[1674178314612,0.36007659,21111.0,21110.0,0.22681006]
[1674178314881,0.36007659,21111.0,21110.0,0.57214698]
[1674178315138,0.35052159,21111.0,21110.0,0.57214698]
[1674178315442,0.35052159,21111.0,21110.0,0.22681006]
[1674178316162,0.35052159,21111.0,21110.0,0.59590147]
[1674178316702,0.35052159,21111.0,21110.0,1.00864025]
[1674178316965,0.02868259,21111.0,21110.0,1.00864025]
[1674178317231,0.02868259,21111.0,21110.0,2.46720349]
[1674178317488,0.02868259,21111.0,21110.0,3.78440144]
[1674178317750,0.02868259,21111.0,21110.0,3.35721855]
[1674178318016,0.02868259,21111.0,21110.0,3.63728784]
[1674178318560,0.02868259,21111.0,21110.0,3.86296547]
[1674178318821,0.018363,21111.0,21110.0,3.43660342]
[1674178319646,0.018363,21111.0,21110.0,3.24490278]
[1674178319909,0.009363,21111.0,21110.0,3.23890278]
[1674178320428,0.009363,21111.0,21110.0,3.09889442]
[1674178320680,0.009363,21111.0,21110.0,2.95689442]
[1674178320929,0.009363,21111.0,21110.0,3.09889442]
[1674178321729,0.00401946,21111.0,21110.0,3.75780263]
[1674178322225,0.00401946,21111.0,21110.0,3.68325905]
[1674178322226,0.00401946,21111.0,21110.0,4.02156614]
[1674178322491,0.00401946,21111.0,21110.0,3.70073278]
[1674178323300,0.00501946,21111.0,21110.0,3.64273278]
[1674178323559,0.00401946,21111.0,21110.0,3.55873278]
[1674178324097,0.00501946,21111.0,21110.0,3.64273278]
[1674178324895,0.00401946,21111.0,21110.0,3.56653278]
[1674178324896,0.00501946,21111.0,21110.0,3.63972272]
[1674178325194,0.00501946,21111.0,21110.0,3.96055608]
[1674178325485,0.00501946,21111.0,21110.0,3.63972272]
[1674178326314,0.00501946,21111.0,21110.0,3.03788436]
[1674178327159,0.00501946,21111.0,21110.0,3.47986924]
[1674178327417,0.00501946,21111.0,21110.0,3.03788436]
[1674178327688,0.00501946,21111.0,21110.0,3.31953902]
[1674178327972,0.00501946,21111.0,21110.0,3.31953288]
[1674178328235,0.00501946,21111.0,21110.0,3.03788436]
[1674178328493,0.00501946,21111.0,21110.0,3.37619145]
[1674178328995,0.00501946,21111.0,21110.0,3.03788436]
[1674178329789,0.00501946,21111.0,21110.0,3.37619145]
[1674178330309,0.00501946,21111.0,21110.0,3.63790845]
[1674178330844,0.00501946,21111.0,21110.0,3.37619145]
[1674178331365,0.00501946,21111.0,21110.0,3.03788436]
[1674178331910,0.00501946,21111.0,21110.0,3.37619145]
[1674178331911,0.00222192,21111.0,21110.0,3.37619145]
[1674178332176,0.00222192,21111.0,21110.0,2.73788436]
[1674178332454,0.00222192,21111.0,21110.0,3.24417168]
[1674178332746,0.00222192,21111.0,21110.0,2.96290453]
[1674178333017,0.00222192,21111.0,21110.0,3.07222134]
[1674178333292,0.00222192,21111.0,21110.0,3.13303761]
[1674178333570,0.00222192,21111.0,21110.0,3.13303529]
[1674178333825,0.00222192,21111.0,21110.0,2.56592744]
[1674178334095,0.00222192,21111.0,21110.0,2.16843471]
[1674178334347,0.00222192,21111.0,21110.0,3.05427812]
[1674178334903,0.00222192,21111.0,21110.0,2.468535]
[1674178335164,0.00222192,21111.0,21110.0,2.62267827]
[1674178335707,0.00222192,21111.0,21110.0,2.768535]
[1674178335995,0.00222192,21111.0,21110.0,2.59976092]
[1674178336532,0.00222192,21111.0,21110.0,2.768535]
[1674178336793,0.00222192,21111.0,21110.0,2.59976092]
[1674178337337,0.00222192,21111.0,21110.0,2.88703956]
[1674178337597,0.00222192,21111.0,21110.0,2.77450368]
[1674178338126,0.00222192,21111.0,21110.0,2.88701772]
[1674178338399,0.00222192,21111.0,21110.0,3.25202586]
[1674178338669,0.00222192,21111.0,21110.0,2.8981476]
[1674178338951,0.00147581,21111.0,21110.0,2.78563356]
[1674178339498,0.00147581,21111.0,21110.0,3.01065373]
[1674178339752,0.00147581,21111.0,21110.0,3.22636663]
[1674178341619,0.00147581,21111.0,21110.0,3.45130715]
[1674178342419,0.00047581,21111.0,21110.0,3.36730715]
[1674178342678,0.00147581,21111.0,21110.0,3.21936663]
[1674178342941,0.00147581,21111.0,21110.0,3.43932428]
[1674178343193,0.00147581,21111.0,21110.0,2.74754972]
[1674178343504,0.00147581,21111.0,21110.0,2.25058034]
[1674178344279,0.00147581,21111.0,21110.0,2.13809409]
[1674178344531,0.00147581,21111.0,21110.0,1.6608924]
[1674178344787,0.32816581,21111.0,21110.0,1.6608924]
[1674178345041,0.32716581,21111.0,21110.0,1.5838924]
[1674178345321,0.32816581,21111.0,21110.0,1.6618924]
[1674178345791,0.32816581,21111.0,21110.0,1.9618924]
[1674178346085,0.00147581,21111.0,21110.0,1.9618924]
[1674178346298,0.33041781,21111.0,21110.0,1.9618924]
[1674178346560,0.31958681,21111.0,21110.0,1.9618924]
[1674178347343,0.00147581,21111.0,21110.0,1.9618924]
[1674178349181,0.00147581,21111.0,21110.0,1.9518924]
[1674178349704,0.00147581,21111.0,21110.0,1.528218]
[1674178349978,0.00147581,21111.0,21110.0,2.51125491]
[1674178350229,0.00147581,21111.0,21110.0,2.9884566]
[1674178350494,0.00147581,21111.0,21110.0,3.18544772]
[1674178350748,0.00147581,21111.0,21110.0,3.65915672]
[1674178351507,0.00147581,21111.0,21110.0,3.37788957]
[1674178351781,0.00065495,21111.0,21110.0,3.37788957]
[1674178352268,0.00065495,21111.0,21110.0,4.00137648]
[1674178352823,0.03,21114.0,21110.0,4.42979181]
[1674178353104,0.03,21114.0,21112.0,0.11257133]
[1674178353350,0.03,21114.0,21113.0,0.473641]
[1674178353879,0.03,21114.0,21113.0,0.773641]
[1674178354122,0.356066,21114.0,21113.0,0.773641]
[1674178355150,0.03,21114.0,21113.0,0.773641]
[1674178355405,0.03,21114.0,21113.0,1.247282]
[1674178355950,0.03,21114.0,21113.0,1.63147022]
[1674178356218,0.03,21114.0,21113.0,0.947282]
[1674178356219,0.82372033,21114.0,21113.0,0.947282]
[1674178356742,0.82472033,21114.0,21113.0,0.947282]
[1674178357016,0.355683,21114.0,21113.0,0.947282]
[1674178357263,0.031,21114.0,21113.0,0.947282]
[1674178357493,0.03,21114.0,21113.0,0.947282]
[1674178357788,0.031,21114.0,21113.0,1.247282]
[1674178358029,0.03,21114.0,21113.0,1.247282]
[1674178358296,0.340209,21114.0,21113.0,1.247282]
[1674178358571,0.339209,21114.0,21113.0,1.247282]
[1674178358857,0.340209,21114.0,21113.0,1.247282]
[1674178359341,0.03,21114.0,21113.0,1.247282]
[1674178359343,0.031,21114.0,21113.0,1.247282]
[1674178359616,0.031,21114.0,21113.0,0.947282]
[1674178359874,0.372001,21114.0,21113.0,0.473641]
[1674178360651,0.373001,21114.0,21113.0,0.473641]
[1674178360943,0.82315165,21114.0,21111.0,0.473686]
[1674178361210,0.304651,21113.0,21110.0,1.08370581]
[1674178361469,0.320696,21112.0,21111.0,0.40899065]
[1674178361962,0.320696,21112.0,21110.0,0.676503]
[1674178362236,0.40515779,21113.0,21111.0,0.057]
[1674178362507,0.323983,21112.0,21110.0,0.676503]
[1674178362766,0.330267,21111.0,21110.0,0.676503]
[1674178363321,0.330267,21111.0,21110.0,0.2028]
[1674178363867,0.330267,21111.0,21110.0,0.2598]
[1674178364138,0.430267,21111.0,21110.0,0.2028]
[1674178364402,1.277639,21111.0,21110.0,0.2598]
[1674178364665,1.66614592,21111.0,21110.0,0.2028]
[1674178365503,1.66714592,21111.0,21110.0,0.2098]
[1674178366856,1.66614592,21111.0,21110.0,0.2028]
[1674178367337,1.66614592,21111.0,21110.0,0.2098]
[1674178367338,1.66714592,21111.0,21110.0,0.2098]
[1674178367339,1.19345992,21111.0,21110.0,0.2098]
[1674178369795,0.71977392,21111.0,21110.0,0.2098]
[1674178370842,1.66714592,21111.0,21110.0,0.2098]
[1674178371104,1.19345992,21111.0,21110.0,0.2098]
[1674178375555,1.66714592,21111.0,21110.0,0.2098]
[1674178380460,1.19345992,21111.0,21110.0,0.2098]
[1674178381741,0.71977392,21111.0,21110.0,0.2098]
[1674178383537,1.19345992,21111.0,21110.0,0.2098]
[1674178386389,1.66714592,21111.0,21110.0,0.2098]
[1674178387696,1.66714592,21111.0,21110.0,0.20969931]
[1674178395118,1.19345992,21111.0,21110.0,0.20969931]
[1674178396711,1.66714592,21111.0,21110.0,0.20969931]
[1674178398315,1.39186819,21111.0,21110.0,0.20969931]
[1674178398663,1.82053205,21111.0,21110.0,0.20969931]
[1674178398843,1.70730286,21111.0,21110.0,0.20969931]
[1674178399100,2.25000404,21111.0,21110.0,0.20969931]
[1674178399365,2.76404012,21111.0,21110.0,0.20969931]
[1674178399870,2.76404012,21111.0,21110.0,0.20189931]
[1674178400125,3.711663,21111.0,21110.0,0.20189931]
[1674178400383,2.76465278,21111.0,21110.0,0.20189931]
[1674178400640,2.08077154,21111.0,21110.0,0.20189931]
[1674178400893,2.76464839,21111.0,21110.0,0.20189931]
[1674178401144,2.76465121,21111.0,21110.0,0.20189931]
[1674178401388,3.71227329,21111.0,21110.0,0.20189931]
[1674178401643,3.48534553,21111.0,21110.0,0.20189931]
[1674178401933,2.76465423,21111.0,21110.0,0.20189931]
[1674178402451,2.76459051,21111.0,21110.0,0.20189931]
[1674178402696,2.08071084,21111.0,21110.0,0.20189931]
[1674178402959,2.76447869,21111.0,21110.0,0.20189931]
[1674178403211,2.83761163,21111.0,21110.0,0.20189931]
[1674178403478,3.06447964,21111.0,21110.0,0.20189931]
[1674178403985,4.01212564,21111.0,21110.0,0.20189931]
[1674178404277,3.78525575,21111.0,21110.0,0.20189931]
[1674178404514,2.16727385,21111.0,21110.0,0.19489931]
[1674178404787,2.16727385,21111.0,21110.0,0.19589931]
[1674178404788,2.05013067,21111.0,21110.0,0.19589931]
[1674178405107,1.76666321,21111.0,21110.0,0.19589931]
[1674178405345,1.88004812,21111.0,21110.0,0.19589931]
[1674178405653,1.47602391,21111.0,21110.0,0.19589931]
[1674178405910,1.82985696,21111.0,21110.0,0.19589931]
[1674178406166,1.71647205,21111.0,21110.0,0.19589931]
[1674178406478,1.362639,21111.0,21110.0,0.19589931]
[1674178406749,1.93556834,21111.0,21110.0,0.19589931]
[1674178406969,1.47602391,21111.0,21110.0,0.19589931]
[1674178407272,1.90131443,21111.0,21110.0,0.19589931]
[1674178407528,1.78792952,21111.0,21110.0,0.19589931]
[1674178407768,1.47602391,21111.0,21110.0,0.19589931]
[1674178408354,1.63526717,21111.0,21110.0,0.19589931]
[1674178408620,1.53272155,21111.0,21110.0,0.19589931]
[1674178409437,1.75951349,21111.0,21110.0,0.19589931]
[1674178410272,2.18172928,21111.0,21110.0,0.19589931]
[1674178410544,1.89824678,21111.0,21110.0,0.19589931]
[1674178410809,1.94149967,21111.0,21110.0,0.19589931]
[1674178411579,1.82810768,21111.0,21110.0,0.19589931]
[1674178412650,1.74310768,21111.0,21110.0,0.19489931]
[1674178412970,1.82010768,21111.0,21110.0,0.19589931]
[1674178416003,1.34642168,21111.0,21110.0,0.19589931]
[1674178416282,1.34642168,21111.0,21110.0,0.23189931]
[1674178416819,1.26942168,21111.0,21110.0,0.23189931]
[1674178417063,1.34642168,21111.0,21110.0,0.23189931]
[1674178417304,0.87273568,21111.0,21110.0,0.23189931]
[1674178417526,1.34642168,21111.0,21110.0,0.23189931]
[1674178417751,0.87273568,21111.0,21110.0,0.23189931]
[1674178418260,1.34642168,21111.0,21110.0,0.23189931]
[1674178418526,1.82010768,21111.0,21110.0,0.23189931]
[1674178418778,1.34642168,21111.0,21110.0,0.23189931]
[1674178419045,1.82010768,21111.0,21110.0,0.23189931]
[1674178419340,1.34642168,21111.0,21110.0,0.23189931]
[1674178419818,1.82010768,21111.0,21110.0,0.23189931]
[1674178421654,1.93349967,21111.0,21110.0,0.23189931]
[1674178422998,1.82010768,21111.0,21110.0,0.23189931]
[1674178423538,1.82409249,21111.0,21110.0,0.23189931]
[1674178423792,1.9992085,21111.0,21110.0,0.23180676]
[1674178424331,1.82912595,21111.0,21110.0,0.23180676]
[1674178424644,1.71570108,21111.0,21110.0,0.23180676]
[1674178432061,1.24201508,21111.0,21110.0,0.23180676]
[1674178432376,1.71570108,21111.0,21110.0,0.23180676]
[1674178433891,1.98566912,21111.0,21110.0,0.23180676]
[1674178434399,1.82912595,21111.0,21110.0,0.23180676]
[1674178434932,1.24201508,21111.0,21110.0,0.23180676]
[1674178435167,1.71570108,21111.0,21110.0,0.23180676]
[1674178435437,1.82912595,21111.0,21110.0,0.23180676]
[1674178436236,1.71570108,21111.0,21110.0,0.23180676]
[1674178437032,1.82912595,21111.0,21110.0,0.23180676]
[1674178438342,1.35543995,21111.0,21110.0,0.23180676]
[1674178438603,1.82912595,21111.0,21110.0,0.23180676]
[1674178438907,1.71570108,21111.0,21110.0,0.23180676]
[1674178441837,1.24201508,21111.0,21110.0,0.23180676]
[1674178442105,1.354639,21111.0,21110.0,0.23180676]
[1674178445288,1.889343,21111.0,21110.0,0.23180676]
[1674178445474,2.36370479,21111.0,21110.0,0.23180676]
[1674178445756,2.17279262,21111.0,21110.0,0.23180676]
[1674178446002,1.94600068,21111.0,21110.0,0.23180676]
[1674178446254,2.17279262,21111.0,21110.0,0.23180676]
[1674178446555,1.94600068,21111.0,21110.0,0.23180676]
[1674178446812,2.40905058,21111.0,21110.0,0.23180676]
[1674178447046,2.70198785,21111.0,21110.0,0.23180676]
[1674178447298,2.98488173,21111.0,21110.0,0.23180676]
[1674178448055,3.63951962,21111.0,21110.0,0.23172814]
[1674178448558,2.69219252,21111.0,21110.0,0.23172814]
[1674178448812,2.00271007,21111.0,21110.0,0.23172814]
[1674178449077,2.40929834,21111.0,21110.0,0.23172814]
[1674178449329,2.40929647,21111.0,21110.0,0.23172814]
[1674178449630,2.69219035,21111.0,21110.0,0.23172814]
[1674178449863,3.41297799,21111.0,21110.0,0.23172814]
[1674178450134,3.60874415,21111.0,21110.0,0.23172814]
[1674178450427,3.60874415,21111.0,21110.0,0.22672011]
[1674178450428,4.51393442,21111.0,21110.0,0.22672011]
[1674178450670,0.16201458,21109.0,21108.0,0.00412872]
[1674178450931,3.53423105,21109.0,21108.0,0.00412872]
[1674178451469,3.81843935,21109.0,21108.0,0.00412872]
[1674178452003,4.31710811,21109.0,21108.0,0.00412872]
[1674178452221,3.92550592,21109.0,21108.0,0.00412872]
[1674178452521,3.83450592,21109.0,21108.0,0.00412872]
[1674178453833,3.64146352,21109.0,21108.0,0.00412872]
[1674178454102,3.55046352,21109.0,21108.0,0.00412872]
[1674178454364,2.92077374,21109.0,21108.0,0.00412872]
[1674178454889,3.40337593,21109.0,21108.0,0.00412872]
[1674178455735,3.67083825,21109.0,21108.0,0.00412872]
[1674178455945,3.40329588,21109.0,21108.0,0.00412872]
[1674178456470,2.64038077,21109.0,21108.0,0.00412872]
[1674178456750,2.69708034,21109.0,21108.0,0.00412872]
[1674178457272,2.52697271,21109.0,21108.0,0.00412872]
[1674178457828,2.41357102,21109.0,21108.0,0.00412872]
[1674178458099,2.52697271,21109.0,21108.0,0.00412872]
[1674178458616,2.41357102,21109.0,21108.0,0.00412872]
[1674178459727,1.93984002,21109.0,21108.0,0.00412872]
[1674178459929,1.46610902,21109.0,21108.0,0.12050872]
[1674178460230,1.46610902,21109.0,21108.0,0.00412872]
[1674178460740,0.99237802,21109.0,21108.0,0.00412872]
[1674178461078,0.99237802,21109.0,21108.0,0.65045891]
[1674178461079,0.25301458,21109.0,21108.0,0.65045891]
[1674178461269,0.25301458,21109.0,21108.0,0.55045891]
[1674178461566,0.16201458,21109.0,21108.0,0.00412872]
[1674178461819,0.55633458,21109.0,21108.0,0.00612872]
[1674178462082,0.48133458,21109.0,21108.0,0.45873526]
[1674178462617,0.48533458,21109.0,21108.0,0.47473526]
[1674178462890,0.48133458,21109.0,21108.0,0.45873526]
[1674178463155,0.48533458,21109.0,21108.0,0.47473526]
[1674178463412,0.16201458,21109.0,21108.0,0.45873526]
[1674178464258,0.16201458,21109.0,21108.0,0.46673526]
[1674178464519,0.16701458,21109.0,21108.0,0.46673526]
[1674178465317,0.49027558,21109.0,21108.0,0.46673526]
[1674178467170,0.49027558,21109.0,21108.0,0.01212872]